fUST/lending_fUST_20260205
["ID","MTS","AMOUNT","RATE_DAILY","PERIOD"]
[404497390,1770220815564,5000.0,0.0003985,51]
[404497398,1770221319155,202.48,0.00039854,120]
[404497408,1770221410755,200.24,0.00012329,2]
[404497409,1770221421423,472.79,0.00012329,2]
[404497426,1770221432238,393.99,0.00012329,2]
[404497436,1770221432496,-300.0,0.00013269,2]
[404497437,1770221432506,-13217.68045004,0.0001327,2]
[404497438,1770221432516,-500.0,0.0001327,2]
[404497439,1770221432525,-500.0,0.0001327,2]
[404497440,1770221432535,-500.0,0.0001327,2]
[404497441,1770221432544,-500.0,0.0001327,2]
[404497442,1770221432554,-500.0,0.0001327,2]
[404497443,1770221432569,-358.23809303,0.0001327,2]
[404497444,1770221432579,-284.56588155,0.0001327,2]
[404497445,1770221432590,-293.85433807,0.0001327,2]
[404497446,1770221432601,-500.0,0.0001327,2]
[404497447,1770221432611,-500.0,0.0001327,2]
[404497448,1770221432621,-500.0,0.0001327,2]
[404497449,1770221432633,-500.0,0.0001327,2]
[404497450,1770221432642,-500.0,0.0001327,2]
[404497451,1770221432652,-500.0,0.0001327,2]
[404497452,1770221432661,-500.0,0.0001327,2]
[404497453,1770221432670,-500.0,0.0001327,2]
[404497454,1770221432680,-500.0,0.0001327,2]
[404497455,1770221432689,-500.0,0.0001327,2]
[404497456,1770221432699,-500.0,0.0001327,2]
[404497457,1770221432708,-500.0,0.0001327,2]
[404497458,1770221432718,-500.0,0.0001327,2]
[404497459,1770221432728,-212.14337274,0.0001327,2]
[404497460,1770221432738,-150.0,0.0001327,2]
[404497461,1770221432748,-500.0,0.00013273,2]
[404497462,1770221432762,-500.0,0.00013273,2]
[404497464,1770221432772,-500.0,0.00013273,2]
[404497466,1770221432782,-637.91783422,0.00013273,2]
[404497468,1770221432791,-500.0,0.00013273,2]
[404497470,1770221432800,-500.0,0.00013273,2]
[404497472,1770221432814,-500.0,0.00013273,2]
[404497474,1770221432823,-500.0,0.00013273,2]
[404497475,1770221432833,-500.0,0.00013273,2]
[404497477,1770221432842,-500.0,0.00013273,2]
[404497479,1770221432852,-168.0,0.00013376,2]
[404497480,1770221432862,-250.0,0.00013481,2]
[404497481,1770221432871,-500.0,0.00013481,2]
[404497482,1770221432881,-250.0,0.00013481,2]
[404497483,1770221432891,-250.0,0.00013481,2]
[404497484,1770221432900,-500.0,0.00013481,2]
[404497485,1770221432911,-250.0,0.00013481,2]
[404497486,1770221432920,-250.0,0.00013481,2]
[404497487,1770221432930,-250.0,0.00013481,2]
[404497488,1770221432940,-500.0,0.00013481,2]
[404497489,1770221432950,-250.0,0.00013481,2]
[404497490,1770221432959,-250.0,0.00013481,2]
[404497491,1770221432969,-250.0,0.00013481,2]
[404497492,1770221432979,-500.0,0.00013481,2]
[404497493,1770221432989,-250.0,0.00013481,2]
[404497494,1770221432998,-250.0,0.00013481,2]
[404497495,1770221433009,-250.0,0.00013481,2]
[404497496,1770221433031,-500.0,0.00013481,2]
[404497497,1770221433052,-250.0,0.00013481,2]
[404497498,1770221433070,-250.0,0.00013481,2]
[404497499,1770221433081,-250.0,0.00013481,2]
[404497500,1770221433092,-500.0,0.00013481,2]
[404497501,1770221433101,-250.0,0.00013481,2]
[404497502,1770221433112,-250.0,0.00013481,2]
[404497503,1770221433122,-250.0,0.00013481,2]
[404497504,1770221433132,-500.0,0.00013481,2]
[404497505,1770221433144,-250.0,0.00013481,2]
[404497506,1770221433154,-250.0,0.00013481,2]
[404497507,1770221433165,-250.0,0.00013481,2]
[404497508,1770221433174,-500.0,0.00013481,2]
[404497509,1770221433184,-250.0,0.00013481,2]
[404497510,1770221433194,-250.0,0.00013481,2]
[404497511,1770221433203,-500.0,0.00013481,2]
[404497512,1770221433213,-250.0,0.00013481,2]
[404497513,1770221433223,-250.0,0.00013481,2]
[404497514,1770221433233,-250.0,0.00013481,2]
[404497515,1770221433243,-500.0,0.00013481,2]
[404497516,1770221433253,-250.0,0.00013481,2]
[404497517,1770221433262,-250.0,0.00013481,2]
[404497518,1770221433272,-250.0,0.00013481,2]
[404497519,1770221433282,-500.0,0.00013481,2]
[404497520,1770221433292,-250.0,0.00013481,2]
[404497521,1770221433302,-250.0,0.00013481,2]
[404497522,1770221433316,-250.0,0.00013481,2]
[404497523,1770221433329,-250.0,0.00013481,2]
[404497524,1770221433339,-250.0,0.00013481,2]
[404497525,1770221433349,-250.0,0.00013481,2]
[404497526,1770221433363,-250.0,0.00013481,2]
[404497527,1770221433374,-250.0,0.00013481,2]
[404497528,1770221433383,-250.0,0.00013481,2]
[404497529,1770221433393,-250.0,0.00013481,2]
[404497530,1770221433402,-250.0,0.00013481,2]
[404497531,1770221433412,-250.0,0.00013481,2]
[404497532,1770221433422,-286.59712023,0.00013488,2]
[404497533,1770221433431,-500.0,0.00013489,2]
[404497534,1770221433441,-600.0,0.00013537,2]
[404497535,1770221433451,-300.0,0.00013673,2]
[404497536,1770221433462,-590.0,0.00013675,2]
[404497537,1770221433471,-500.0,0.00013698,2]
[404497538,1770221433481,-500.0,0.00013698,2]
[404497539,1770221433493,-500.0,0.00013698,2]
[404497540,1770221433503,-500.0,0.00013698,2]
[404497541,1770221433512,-265.5703424,0.00013699,2]
[404497542,1770221433521,-500.0,0.00013699,2]
[404497543,1770221433531,-500.0,0.00013699,2]
[404497544,1770221433541,-500.0,0.00013699,2]
[404497545,1770221433554,-500.0,0.00013699,2]
[404497546,1770221433574,-500.0,0.00013699,2]
[404497547,1770221433588,-500.0,0.00013699,2]
[404497548,1770221433601,-500.0,0.00013699,2]
[404497549,1770221433615,-500.0,0.00013699,2]
[404497550,1770221433628,-5417.94433289,0.00013705,2]
[404497551,1770221433639,-182.72385014,0.00013721,2]
[404497552,1770221433653,-500.0,0.00013763,2]
[404497553,1770221433666,-1000.0,0.00013821,2]
[404497554,1770221433678,-163.32996403,0.00013821,2]
[404497555,1770221433689,-1000.0,0.00013821,2]
[404497556,1770221433701,-1000.0,0.00013821,2]
[404497557,1770221433714,-1000.0,0.00013821,2]
[404497558,1770221433726,-1000.0,0.00013821,2]
[404497559,1770221433738,-1000.0,0.00013821,2]
[404497560,1770221433751,-1000.0,0.00013821,2]
[404497561,1770221433764,-1000.0,0.00013821,2]
[404497562,1770221433777,-168.0,0.00013827,2]
[404497563,1770221433789,-500.0,0.00013988,2]
[404497564,1770221433802,-500.0,0.00013988,2]
[404497565,1770221433819,-4510.840948,0.00013989,2]
[404497566,1770221433832,-635.0,0.00013992,2]
[404497567,1770221433845,-494.14,0.00013993,2]
[404497568,1770221433857,-500.0,0.00014037,2]
[404497569,1770221433870,-590.0,0.00014093,2]
[404497570,1770221433883,-18352.12558751,0.00014175,2]
[404497571,1770221433896,-635.0,0.00014212,2]
[404497572,1770221433907,-600.0,0.00014221,2]
[404497573,1770221433920,-1203.85490375,0.00014225,2]
[404497574,1770221433932,-182.72385014,0.00014236,2]
[404497575,1770221433943,-1000.0,0.00014247,2]
[404497576,1770221433954,-1000.0,0.00014247,2]
[404497577,1770221433966,-763.66351327,0.00014247,2]
[404497578,1770221433977,-1058.09731409,0.00014247,2]
[404497579,1770221433990,-1000.0,0.00014247,2]
[404497580,1770221434003,-1000.0,0.00014247,2]
[404497581,1770221434014,-1000.0,0.00014247,2]
[404497582,1770221434028,-1000.0,0.00014247,2]
[404497583,1770221434040,-500.0,0.00014368,2]
[404497584,1770221434052,-500.0,0.00014368,2]
[404497585,1770221434070,-1500.0,0.00014368,2]
[404497586,1770221434082,-1500.0,0.00014368,2]
[404497587,1770221434096,-1500.0,0.00014368,2]
[404497588,1770221434107,-1500.0,0.00014368,2]
[404497589,1770221434117,-1500.0,0.00014368,2]
[404497590,1770221434127,-1500.0,0.00014368,2]
[404497591,1770221434139,-1500.0,0.00014368,2]
[404497592,1770221434149,-1500.0,0.00014368,2]
[404497593,1770221434161,-868.40163783,0.00014378,2]
[404497594,1770221434174,-230.98743004,0.00014409,2]
[404497595,1770221434188,-238.31207876,0.00014409,2]
[404497596,1770221434200,-428.96174176,0.00014409,2]
[404497597,1770221434211,-635.0,0.00014411,2]
[404497598,1770221434221,-150.334,0.00014499,2]
[404497599,1770221434233,-150.0,0.00014499,2]
[404497600,1770221434244,-150.0,0.00014499,2]
[404497601,1770221434255,-389.7,0.00014499,2]
[404497602,1770221434268,-179.0,0.00014499,2]
[404497603,1770221434280,-420.0,0.00014547,2]
[404497604,1770221434290,-317.87271514,0.00014548,2]
[404497605,1770221434301,-281.28517311,0.00014553,2]
[404497606,1770221434316,-4510.840948,0.00014578,2]
[404497607,1770221434328,-500.0,0.00014722,2]
[404497608,1770221434339,-500.0,0.00014722,2]
[404497609,1770221434350,-3219.2585698,0.00014723,2]
[404497610,1770221434363,-961.0674424,0.00014723,2]
[404497611,1770221434374,-2031.2881909,0.00014723,2]
[404497612,1770221434385,-182.72385014,0.0001475,2]
[404497613,1770221434397,-635.0,0.00014768,2]
[404497614,1770221434408,-900.0,0.00014768,2]
[404497615,1770221434420,-759.46508342,0.00014795,2]
[404497616,1770221434433,-1500.0,0.00014795,2]
[404497617,1770221434445,-1500.0,0.00014795,2]
[404497618,1770221434457,-1500.0,0.00014795,2]
[404497619,1770221434468,-302.06526718,0.00014795,2]
[404497620,1770221434479,-1561.55294208,0.00014795,2]
[404497621,1770221434490,-500.0,0.00014849,2]
[404497622,1770221434501,-500.0,0.00014849,2]
[404497623,1770221434512,-500.0,0.00014849,2]
[404497624,1770221434524,-500.0,0.00014849,2]
[404497625,1770221434535,-500.0,0.00014849,2]
[404497626,1770221434546,-500.0,0.00014849,2]
[404497627,1770221434557,-500.0,0.00014849,2]
[404497628,1770221434574,-500.0,0.00014849,2]
[404497629,1770221434585,-500.0,0.00014849,2]
[404497630,1770221434597,-500.0,0.00014849,2]
[404497631,1770221434608,-500.0,0.00014849,2]
[404497632,1770221434619,-500.0,0.00014849,2]
[404497633,1770221434630,-500.0,0.00014849,2]
[404497634,1770221434641,-500.0,0.00014849,2]
[404497635,1770221434653,-500.0,0.00014849,2]
[404497636,1770221434664,-500.0,0.00014849,2]
[404497637,1770221434676,-500.0,0.00014849,2]
[404497638,1770221434687,-500.0,0.00014849,2]
[404497639,1770221434699,-171.00101918,0.00014849,2]
[404497640,1770221434711,-485470.93453448,0.0001485,2]
[404497641,1770221434722,-929.97180288,0.0001485,2]
[404497642,1770221434733,-23556.93106759,0.0001485,2]
[404497643,1770221434744,-132480.90301121,0.0001485,2]
[404497644,1770221434756,-81285.31711921,0.0001485,2]
[404497645,1770221434766,-21850.51344534,0.0001485,2]
[404497646,1770221435013,-300.23,0.0001485,2]
[404497659,1770221438562,-551.0,0.0001333,2]
[404497660,1770221438575,-551.0,0.00013356,2]
[404497661,1770221438584,-500.0,0.00013481,2]
[404497662,1770221438594,-250.0,0.00013481,2]
[404497663,1770221438603,-500.0,0.00013481,2]
[404497664,1770221438613,-1000.0,0.00013481,2]
[404497665,1770221438622,-250.0,0.00013481,2]
[404497666,1770221438632,-500.0,0.00013481,2]
[404497667,1770221438642,-1000.0,0.00013481,2]
[404497668,1770221438652,-500.0,0.00013481,2]
[404497669,1770221438662,-250.0,0.00013481,2]
[404497670,1770221438672,-1000.0,0.00013481,2]
[404497671,1770221438681,-500.0,0.00013481,2]
[404497672,1770221438691,-1000.0,0.00013481,2]
[404497673,1770221438700,-500.0,0.00013481,2]
[404497674,1770221438710,-1000.0,0.00013481,2]
[404497675,1770221438720,-586.94060157,0.00013481,2]
[404497676,1770221438730,-1000.0,0.00013481,2]
[404497677,1770221438740,-1000.0,0.00013481,2]
[404497678,1770221438750,-1000.0,0.00013481,2]
[404497679,1770221438760,-1000.0,0.00013481,2]
[404497680,1770221438769,-1855.99149213,0.0001485,2]
[404497681,1770221438779,-487.0,0.0001485,2]
[404497682,1770221438788,-487.0,0.0001485,2]
[404497683,1770221438798,-487.0,0.0001485,2]
[404497684,1770221438807,-487.0,0.0001485,2]
[404497685,1770221438820,-487.0,0.0001485,2]
[404497686,1770221438830,-487.0,0.0001485,2]
[404497687,1770221438840,-487.0,0.0001485,2]
[404497688,1770221438850,-487.0,0.0001485,2]
[404497689,1770221438860,-487.0,0.0001485,2]
[404497690,1770221438869,-487.0,0.0001485,2]
[404497691,1770221438879,-487.0,0.0001485,2]
[404497692,1770221438888,-487.0,0.0001485,2]
[404497693,1770221438897,-487.0,0.0001485,2]
[404497694,1770221438907,-487.0,0.0001485,2]
[404497695,1770221438917,-487.0,0.0001485,2]
[404497696,1770221438926,-487.0,0.0001485,2]
[404497697,1770221438936,-487.0,0.0001485,2]
[404497698,1770221438946,-963.99,0.0001485,2]
[404497699,1770221438956,-720.0,0.00014891,2]
[404497700,1770221438966,-151.0,0.000149,2]
[404497701,1770221438976,-151.0,0.000149,2]
[404497702,1770221438986,-14010.30052877,0.000149,2]
[404497703,1770221438995,-1006.74888007,0.00014916,2]
[404497704,1770221439005,-2000.0,0.00014916,2]
[404497705,1770221439015,-2000.0,0.00014916,2]
[404497706,1770221439024,-1419.58576878,0.00014916,2]
[404497707,1770221439034,-2000.0,0.00014916,2]
[404497708,1770221439044,-2000.0,0.00014916,2]
[404497709,1770221439053,-2000.0,0.00014916,2]
[404497710,1770221439065,-2000.0,0.00014916,2]
[404497711,1770221439075,-1000000.0,0.00015,2]
[404497712,1770221439084,-234180.1171482,0.00015,2]
[404497713,1770221439094,-4999.999999,0.00015,2]
[404497714,1770221439103,-258173.83917447,0.00015,2]
[404497715,1770221439113,-151.0,0.00015,2]
[404497716,1770221439122,-837.66985282,0.00015,2]
[404497717,1770221439132,-221.17534,0.00015068,2]
[404497718,1770221439142,-169.0,0.00015105,2]
[404497719,1770221439152,-4510.840948,0.00015167,2]
[404497720,1770221439162,-635.0,0.00015245,2]
[404497721,1770221439172,-177.0,0.0001527,2]
[404497722,1770221439182,-168.0,0.00015306,2]
[404497723,1770221439192,-1200.0,0.00015316,2]
[404497724,1770221439202,-2000.0,0.00015342,2]
[404497725,1770221439212,-2000.0,0.00015342,2]
[404497726,1770221439222,-2000.0,0.00015342,2]
[404497727,1770221439232,-169.0,0.00015385,2]
[404497728,1770221439241,-169.0,0.00015391,2]
[404497729,1770221439250,-2500.0,0.00015464,2]
[404497730,1770221439260,-1583.48873267,0.00015464,2]
[404497731,1770221439269,-2500.0,0.00015464,2]
[404497732,1770221439278,-2500.0,0.00015464,2]
[404497733,1770221439287,-2500.0,0.00015464,2]
[404497734,1770221439297,-2500.0,0.00015464,2]
[404497735,1770221439307,-5786.03,0.00015559,2]
[404497736,1770221439323,-4510.840948,0.00015756,2]
[404497737,1770221439332,-168.0,0.00015829,2]
[404497738,1770221439342,-1500.0,0.00015864,2]
[404497739,1770221439351,-168.0,0.0001589,2]
[404497740,1770221439362,-151.0,0.0001589,2]
[404497741,1770221439371,-151.0,0.0001589,2]
[404497742,1770221439380,-151.0,0.0001589,2]
[404497743,1770221439389,-298.65301,0.0001589,2]
[404497744,1770221439398,-1284.2211531,0.0001589,2]
[404497745,1770221439410,-2500.0,0.0001589,2]
[404497746,1770221439419,-2500.0,0.0001589,2]
[404497747,1770221439429,-9051.03818111,0.000159,2]
[404497748,1770221439449,-100000.0,0.00015904,2]
[404497749,1770221439460,-587.0,0.00015949,2]
[404497750,1770221439469,-1500.0,0.00016,2]
[404497751,1770221439479,-133898.73390362,0.00016,2]
[404497752,1770221439494,-310241.19170148,0.00016,2]
[404497785,1770221446070,-212.41337558,0.00013481,2]
[404497786,1770221446080,-329.99662442,0.0001599,3]
[404497787,1770221446096,-114.21337558,0.0001599,3]
[404497788,1770221446106,-4403.23826447,0.00016,2]
[404497789,1770221446117,-20064.0133,0.00016,2]
[404497790,1770221446129,-5170.79072834,0.00016,2]
[404497801,1770221447681,-10000.83427324,0.00016,2]
[404497802,1770221447694,-26111.87312379,0.00016,2]
[404497803,1770221447705,-1365.53921141,0.00016,2]
[404497804,1770221447716,-6317.19600632,0.00016,2]
[404497805,1770221447727,-17456.9411323,0.00016,2]
[404497806,1770221447738,-1762.92381098,0.00016,2]
[404497807,1770221572801,5000.0,0.0001301,2]
[404497808,1770221580454,191.85703901,0.00039857,120]
[404497809,1770221580902,191.85703901,0.00039857,120]
[404497811,1770221750482,22649.4131222,0.000125,2]
[404497812,1770221754216,1340.14194083,0.00039693,20]
[404497814,1770221765147,5000.0,0.00013011,2]
[404497816,1770221794922,5000.0,0.00013011,2]
[404497817,1770221803260,5000.0,0.00013011,2]
[404497818,1770221817889,5000.0,0.00013011,2]
[404497819,1770221825598,5000.0,0.00013011,2]
[404497820,1770221840314,5000.0,0.00013011,2]
[404497821,1770221848076,4721.82715996,0.00013011,2]
[404497824,1770221863297,5000.0,0.00013011,2]
[404497825,1770221885171,4679.16760901,0.00013011,2]
[404497828,1770221984941,5000.0,0.00013011,2]
[404497829,1770222007823,5000.0,0.00013011,2]
[404497832,1770222030365,5000.0,0.00013011,2]
[404497833,1770222052509,5000.0,0.00013011,2]
[404497834,1770222074676,5000.0,0.00013011,2]
[404497835,1770222096907,5000.0,0.00013011,2]
[404497843,1770222118902,5000.0,0.00013011,2]
[404497844,1770222141432,5000.0,0.00013011,2]
[404497845,1770222164350,5000.0,0.00013011,2]
[404497846,1770222187143,5000.0,0.00013011,2]
[404497847,1770222210226,5000.0,0.00013011,2]
[404497848,1770222232151,5000.0,0.00013011,2]
[404497849,1770222254252,5000.0,0.00013011,2]
[404497850,1770222276315,5000.0,0.00013011,2]
[404497853,1770222299128,5000.0,0.00013011,2]
[404497854,1770222321125,5000.0,0.00013011,2]
[404497855,1770222343469,5000.0,0.00013011,2]
[404497861,1770222365448,5000.0,0.00013011,2]
[404497863,1770222387774,5000.0,0.00013011,2]
[404497864,1770222409916,5000.0,0.00013011,2]
[404497866,1770222432510,5000.0,0.00013011,2]
[404497867,1770222454585,5000.0,0.00013011,2]
[404497868,1770222466840,3131.832035,0.00012599,2]
[404497870,1770222477315,5000.0,0.00013011,2]
[404497871,1770222499922,5000.0,0.00013011,2]
[404497875,1770222522207,5000.0,0.00013011,2]
[404497876,1770222544285,5000.0,0.00013011,2]
[404497884,1770222566738,5000.0,0.00013011,2]
[404497885,1770222588899,5000.0,0.00013011,2]
[404497886,1770222589314,1772.94,0.00012329,2]
[404497887,1770222599715,1477.45,0.00012329,2]
[404497888,1770222610132,1231.2,0.00012329,2]
[404497889,1770222611161,5000.0,0.00013011,2]
[404497890,1770222620478,1026.0,0.00012329,2]
[404497891,1770222630953,1026.0,0.00012329,2]
[404497924,1770222632558,-300.0,0.00013068,2]
[404497925,1770222632568,-1086.0,0.00013068,2]
[404497926,1770222632578,-309.39620906,0.00013068,2]
[404497927,1770222632587,-373.13756589,0.00013068,2]
[404497928,1770222632597,-301.34926364,0.00013068,2]
[404497929,1770222632607,-34961.4827639,0.00013069,2]
[404497930,1770222632617,-437.78853456,0.00013123,2]
[404497931,1770222632626,-241.70176219,0.00013194,2]
[404497932,1770222632637,-121.65881668,0.00013194,2]
[404497933,1770222632646,-200.61798416,0.00013271,2]
[404497934,1770222632657,-500.0,0.00013273,2]
[404497935,1770222632670,-500.0,0.00013273,2]
[404497936,1770222632679,-500.0,0.00013273,2]
[404497937,1770222632689,-500.0,0.00013273,2]
[404497938,1770222632698,-500.0,0.00013273,2]
[404497939,1770222632710,-500.0,0.00013273,2]
[404497940,1770222632719,-300.0,0.00013673,2]
[404497941,1770222632727,-1000.0,0.00013699,2]
[404497942,1770222632738,-500.0,0.00013699,2]
[404497943,1770222632747,-500.0,0.00013699,2]
[404497944,1770222632767,-251.35879396,0.00013821,2]
[404497945,1770222632776,-222.15552708,0.00013821,2]
[404497946,1770222633345,5000.0,0.00013011,2]
[404497974,1770222638675,-861.33320559,0.00013821,2]
[404497975,1770222638685,-1000.0,0.00013821,2]
[404497976,1770222638695,-1000.0,0.00013821,2]
[404497977,1770222638704,-1000.0,0.00013821,2]
[404497978,1770222638714,-1000.0,0.00013821,2]
[404497979,1770222638724,-250.0,0.00014091,2]
[404497980,1770222638734,-250.0,0.00014091,2]
[404497981,1770222638743,-250.0,0.00014091,2]
[404497982,1770222638755,-250.0,0.00014091,2]
[404497983,1770222638764,-500.0,0.00014091,2]
[404497984,1770222638774,-500.0,0.00014091,2]
[404497985,1770222638783,-250.0,0.00014091,2]
[404497986,1770222638792,-500.0,0.00014091,2]
[404497987,1770222638802,-500.0,0.00014091,2]
[404497988,1770222638811,-500.0,0.00014091,2]
[404497989,1770222638820,-500.0,0.00014091,2]
[404497990,1770222638829,-250.0,0.00014091,2]
[404497991,1770222638839,-250.0,0.00014091,2]
[404497992,1770222638848,-250.0,0.00014091,2]
[404497993,1770222638859,-250.0,0.00014091,2]
[404497994,1770222638869,-250.0,0.00014091,2]
[404497995,1770222638879,-250.0,0.00014091,2]
[404497996,1770222638889,-250.0,0.00014091,2]
[404497997,1770222638899,-250.0,0.00014091,2]
[404497998,1770222638909,-500.0,0.00014091,2]
[404497999,1770222638918,-250.0,0.00014091,2]
[404498000,1770222638927,-250.0,0.00014091,2]
[404498001,1770222638937,-500.0,0.00014091,2]
[404498002,1770222638947,-250.0,0.00014091,2]
[404498003,1770222638956,-250.0,0.00014091,2]
[404498004,1770222638966,-250.0,0.00014091,2]
[404498005,1770222638976,-250.0,0.00014091,2]
[404498006,1770222638986,-250.0,0.00014091,2]
[404498007,1770222638996,-500.0,0.00014091,2]
[404498008,1770222639008,-249.92010003,0.00014091,2]
[404498009,1770222639018,-250.0,0.00014091,2]
[404498010,1770222639028,-500.0,0.00014091,2]
[404498011,1770222639037,-250.0,0.00014091,2]
[404498012,1770222639047,-250.0,0.00014091,2]
[404498013,1770222639056,-500.0,0.00014091,2]
[404498014,1770222639066,-250.0,0.00014091,2]
[404498015,1770222639075,-250.0,0.00014091,2]
[404498016,1770222639085,-250.0,0.00014091,2]
[404498017,1770222639095,-250.0,0.00014091,2]
[404498018,1770222639105,-250.0,0.00014091,2]
[404498019,1770222639115,-250.0,0.00014091,2]
[404498020,1770222639125,-250.0,0.00014091,2]
[404498021,1770222639135,-250.0,0.00014091,2]
[404498022,1770222639146,-203.76056042,0.00014091,2]
[404498023,1770222639156,-250.0,0.00014091,2]
[404498024,1770222639166,-250.0,0.00014091,2]
[404498025,1770222639176,-250.0,0.00014091,2]
[404498026,1770222639187,-250.0,0.00014091,2]
[404498027,1770222639197,-250.0,0.00014091,2]
[404498028,1770222639206,-17902.7820552,0.00014175,2]
[404498029,1770222639216,-600.0,0.00014221,2]
[404498030,1770222639226,-1000.0,0.00014247,2]
[404498031,1770222639236,-1000.0,0.00014247,2]
[404498032,1770222639245,-420.0,0.0001433,2]
[404498033,1770222639256,-1500.0,0.00014368,2]
[404498034,1770222639265,-1500.0,0.00014368,2]
[404498035,1770222639274,-1500.0,0.00014368,2]
[404498036,1770222639283,-1500.0,0.00014368,2]
[404498037,1770222639293,-179.0,0.0001445,2]
[404498038,1770222639302,-646.97820445,0.00014488,2]
[404498039,1770222639311,-900.0,0.00014768,2]
[404498040,1770222639321,-1500.0,0.00014795,2]
[404498041,1770222639331,-1500.0,0.00014795,2]
[404498042,1770222639340,-1496.53604762,0.00014916,2]
[404498043,1770222639350,-2000.0,0.00014916,2]
[404498044,1770222639359,-2000.0,0.00014916,2]
[404498045,1770222639368,-2000.0,0.00014916,2]
[404498046,1770222639378,-798443.26555296,0.00015,2]
[404498047,1770222639387,-487.0,0.00015,2]
[404498048,1770222639396,-487.0,0.00015,2]
[404498049,1770222639405,-487.0,0.00015,2]
[404498050,1770222639414,-487.0,0.00015,2]
[404498051,1770222639423,-487.0,0.00015,2]
[404498052,1770222639433,-487.0,0.00015,2]
[404498053,1770222639442,-487.0,0.00015,2]
[404498054,1770222639451,-487.0,0.00015,2]
[404498055,1770222639460,-487.0,0.00015,2]
[404498056,1770222639469,-487.0,0.00015,2]
[404498057,1770222639478,-495.64,0.00015,2]
[404498058,1770222639487,-177.0,0.00015068,2]
[404498059,1770222639496,-168.0,0.00015082,2]
[404498060,1770222639507,-168.0,0.00015084,2]
[404498061,1770222639516,-168.0,0.00015228,2]
[404498062,1770222639526,-1200.0,0.00015316,2]
[404498063,1770222639536,-2000.0,0.00015342,2]
[404498064,1770222639545,-2000.0,0.00015342,2]
[404498065,1770222639554,-168.0,0.0001536,2]
[404498066,1770222639564,-2500.0,0.00015464,2]
[404498067,1770222639573,-2500.0,0.00015464,2]
[404498068,1770222639583,-2500.0,0.00015464,2]
[404498069,1770222639592,-10000.0,0.00015559,2]
[404498070,1770222639602,-168.0,0.00015604,2]
[404498071,1770222639612,-168.0,0.0001563,2]
[404498072,1770222639622,-865.78,0.00015659,2]
[404498073,1770222639632,-187.52344874,0.0001568,2]
[404498074,1770222639642,-587.0,0.00015715,2]
[404498075,1770222639652,-169.0,0.00015731,2]
[404498076,1770222639663,-168.0,0.00015738,2]
[404498077,1770222639672,-169.0,0.00015809,2]
[404498078,1770222639681,-1500.0,0.00015864,2]
[404498079,1770222639691,-171.17059708,0.0001588,2]
[404498080,1770222639701,-151.0,0.0001589,2]
[404498081,1770222639710,-151.0,0.0001589,2]
[404498082,1770222639719,-151.0,0.0001589,2]
[404498083,1770222639728,-298.65301,0.0001589,2]
[404498084,1770222639738,-2500.0,0.0001589,2]
[404498085,1770222639747,-2500.0,0.0001589,2]
[404498086,1770222639760,-100000.0,0.00015904,2]
[404498087,1770222639769,-878.5911267,0.00015951,2]